bitfinex-derivatives/quotes_SOLF0:USTF0_20250819
["timestamp","ask_amount","ask_price","bid_price","bid_amount"]
[1755577661153,3.94176067,178.11,178.03,3.04]
[1755577661458,3.94176067,178.1,178.03,3.04]
[1755577661650,3.94176067,178.09,178.03,3.04]
[1755577661851,2.54,178.14,178.03,8.6543]
[1755577662063,11.56606133,178.13,178.03,8.6543]
[1755577662265,3.93978246,178.12,178.03,8.6543]
[1755577662466,3.93978246,178.11,178.06,3.04]
[1755577662661,3.93978246,178.1,178.05,5.6137]
[1755577662869,2.54,178.14,178.07,3.04]
[1755577663164,3.93880724,178.13,178.07,3.04]
[1755577663367,3.93880724,178.12,178.08,3.04]
[1755577663568,8.43980195,178.18,178.08,3.04]
[1755577663569,2.54,178.18,178.08,3.04]
[1755577663764,11.56140153,178.17,178.08,3.04]
[1755577664062,3.93850799,178.16,178.08,3.04]
[1755577664269,3.93850799,178.15,178.08,3.04]
[1755577664563,3.93850799,178.14,178.08,3.04]
[1755577664760,6.47850799,178.13,178.08,3.04]
[1755577664966,6.47850799,178.13,178.04,5.6141]
[1755577664967,2.54,178.13,178.04,8.6541]
[1755577665367,3.93508201,178.12,178.04,3.04]
[1755577665568,2.54,178.13,178.04,3.04]
[1755577665763,3.93626275,178.12,178.04,3.04]
[1755577665966,2.54,178.13,178.04,3.04]
[1755577666161,3.93678423,178.12,178.04,3.04]
[1755577666464,3.93573852,178.11,178.04,3.04]
[1755577666770,2.54,178.13,178.04,3.04]
[1755577666969,3.93991271,178.12,178.04,3.04]
[1755577667167,3.93991271,178.11,178.04,3.04]
[1755577667356,6.47991271,178.1,178.0,3.04]
[1755577667563,2.54,178.1,178.0,3.04]
[1755577667958,5.89980195,178.16,178.02,3.04]
[1755577668164,3.95140681,178.15,178.02,3.04]
[1755577668363,3.95140681,178.14,178.02,3.04]
[1755577668664,6.49140681,178.13,178.05,3.04]
[1755577668967,3.95140681,178.12,178.01,3.04]
[1755577669170,6.49140681,178.11,178.01,3.04]
[1755577669366,2.54,178.09,177.96,7.70226211]
[1755577669559,3.94779902,178.08,177.99,3.04]
[1755577669765,2.54,178.09,177.99,3.04]
[1755577669961,3.94832252,178.08,177.99,3.04]
[1755577670161,2.54,178.09,177.99,8.6558]
[1755577670361,3.96834338,178.08,177.99,3.04]
[1755577670570,2.54,178.09,177.99,3.04]
[1755577670771,3.97654438,178.08,177.99,8.6557]
[1755577671065,2.54,178.09,177.99,8.6557]
[1755577671365,3.97225728,178.08,177.99,3.04]
[1755577671571,0.03665603,178.06,178.03,3.04]
[1755577671763,0.03665603,178.06,178.04,3.04]
[1755577671961,2.54,178.12,178.04,3.04]
[1755577672163,3.96878619,178.11,178.04,3.04]
[1755577672363,3.96878619,178.1,178.04,3.04]
[1755577672569,0.03707701,178.09,178.06,0.04058396]
[1755577673562,2.54,178.08,178.06,0.04058396]
[1755577673765,2.54,178.07,178.06,0.04058396]
[1755577674177,6.5075689,178.07,178.06,0.04058396]
[1755577674565,4.5275689,178.07,177.97,2.91]
[1755577674766,6.4675689,178.06,177.97,2.91]
[1755577674966,3.9675689,178.05,177.97,2.91]
[1755577675160,2.5,178.06,177.97,2.91]
[1755577675368,3.96520031,178.05,177.97,2.91]
[1755577675671,2.5,178.06,177.97,2.91]
[1755577675871,0.04258777,178.03,177.97,2.91]
[1755577676463,0.04258777,178.03,177.98,5.616]
[1755577676676,0.04258777,178.03,178.0,2.91]
[1755577676879,2.5,178.06,178.01,2.91]
[1755577677178,0.0378783,178.03,177.97,2.91]
[1755577677475,0.0378783,178.03,177.97,8.5262]
[1755577677784,2.5,178.05,177.97,8.5262]
[1755577677967,0.04280719,178.02,177.98,2.91]
[1755577680477,0.04280719,178.02,177.93,2.91]
[1755577680873,2.5,178.01,177.93,2.91]
[1755577681075,0.04280719,178.02,177.93,2.91]
[1755577682677,0.04280719,178.02,177.96,2.91]
[1755577682880,8.84970293,178.13,177.96,2.91]
[1755577682881,2.5,178.09,177.97,2.91]
[1755577683080,3.9674406,178.08,177.97,2.91]
[1755577683270,2.5,178.09,178.01,5.6151]
[1755577683470,3.96832179,178.08,178.01,5.6151]
[1755577683675,2.5,178.09,178.01,5.6151]
[1755577683873,3.96660602,178.08,178.01,5.6151]
[1755577684171,2.5,178.09,178.01,5.6151]
[1755577684368,3.96658923,178.08,178.01,5.6151]
[1755577684573,2.5,178.09,178.01,5.6151]
[1755577684779,3.96658806,178.08,178.01,5.6151]
[1755577684978,2.5,178.09,178.01,5.6151]
[1755577685572,2.54,178.14,178.01,2.91]
[1755577685771,3.96730162,178.13,178.01,2.91]
[1755577685971,3.96730162,178.12,178.01,2.91]
[1755577686171,3.96730162,178.11,178.03,5.6144]
[1755577686371,2.54,178.14,178.03,5.6144]
[1755577686679,3.96529208,178.13,178.05,2.91]
[1755577686877,3.96529208,178.12,178.05,2.91]
[1755577687076,3.96529208,178.11,178.05,2.91]
[1755577687276,2.54,178.14,178.05,8.5239]
[1755577687472,3.96788221,178.13,178.05,8.5239]
[1755577687668,3.96788221,178.12,178.05,2.91]
[1755577687874,3.96788221,178.11,178.05,2.91]
[1755577688073,2.54,178.14,178.05,2.91]
[1755577688374,3.96762247,178.13,178.05,2.91]
[1755577688572,3.96762247,178.12,178.05,8.5237]
[1755577688881,3.96762247,178.11,178.05,2.91]
[1755577689081,2.54,178.14,178.05,2.91]
[1755577689281,3.96856243,178.13,178.05,2.91]
[1755577689477,3.96856243,178.12,178.05,2.91]
[1755577689680,2.54,178.14,178.05,2.91]
[1755577689882,3.97068116,178.13,178.05,2.91]
[1755577690083,2.54,178.14,178.05,2.91]
[1755577690279,3.97118238,178.13,178.05,2.91]
[1755577690480,2.54,178.12,178.01,2.91]
[1755577690875,2.54,178.12,178.02,5.6146]
[1755577691083,2.54,178.12,178.01,2.91]
[1755577692182,2.54,178.1,178.01,2.91]
[1755577692778,3.9817453,178.09,178.01,2.91]
[1755577692980,2.54,178.1,178.01,2.91]
[1755577693179,3.98262385,178.09,178.01,2.91]
[1755577693380,2.54,178.1,178.01,2.91]
[1755577693580,3.98222753,178.09,178.01,2.91]
[1755577693880,2.54,178.07,178.01,2.91]
[1755577694083,2.54,178.07,177.97,2.91]
[1755577694597,3.98408677,178.06,177.97,2.91]
[1755577694882,2.54,178.07,177.97,2.91]
[1755577695385,5.89980195,178.14,177.97,2.91]
[1755577695579,2.54,178.12,177.97,2.91]
[1755577695884,3.99976309,178.11,178.01,5.615]
[1755577696080,3.99976309,178.1,178.01,8.525]
[1755577696280,3.99976309,178.09,178.01,8.525]
[1755577696578,3.99976309,178.08,178.01,8.525]
[1755577696782,2.54,178.12,178.01,8.525]
[1755577696978,2.54,178.1,178.01,8.525]
[1755577697184,3.9995321,178.09,178.01,8.525]
[1755577697383,3.9995321,178.08,178.01,8.525]
[1755577697584,2.54,178.1,178.01,8.525]
[1755577697785,4.00462456,178.09,178.01,8.525]
[1755577697987,4.00462456,178.08,178.01,8.525]
[1755577698183,4.00658872,178.07,178.01,8.525]
[1755577698483,2.54,178.1,178.01,8.525]
[1755577698786,4.00674967,178.09,178.01,8.525]
[1755577698986,4.00674967,178.08,178.01,8.525]
[1755577699186,2.54,178.1,178.01,8.525]
[1755577699386,4.00458753,178.09,178.01,8.525]
[1755577699680,4.00458753,178.08,178.01,8.525]
[1755577699884,4.00458753,178.07,178.01,8.525]
[1755577700086,2.54,178.1,178.01,8.525]
[1755577700286,4.00614359,178.09,178.01,8.525]
[1755577700488,4.00614359,178.08,178.01,8.525]
[1755577700688,4.00614359,178.07,178.01,8.525]
[1755577700888,2.54,178.1,178.01,8.525]
[1755577701086,4.00915815,178.09,178.01,8.525]
[1755577701287,4.00915815,178.08,178.01,8.525]
[1755577701487,4.00915815,178.07,178.01,8.525]
[1755577701790,2.54,178.1,178.01,8.525]
[1755577701993,4.00869009,178.09,178.01,2.91]
[1755577702292,4.00869009,178.08,178.01,2.91]
[1755577702487,4.00869009,178.07,178.01,2.91]
[1755577702693,2.54,178.1,178.01,2.91]
[1755577702995,4.00811841,178.09,178.01,2.91]
[1755577703185,4.00811841,178.08,178.01,2.91]
[1755577703389,4.00811841,178.07,178.01,2.91]
[1755577703595,2.54,178.1,178.01,2.91]
[1755577703793,4.00369522,178.09,178.01,2.91]
[1755577703993,4.00369522,178.08,178.01,2.91]
[1755577704294,4.00369522,178.07,178.01,2.91]
[1755577704488,4.00369522,178.06,178.01,8.525]
[1755577704690,2.54,178.1,178.02,3.2]
[1755577704895,4.00407641,178.09,178.02,3.2]
[1755577705194,2.55,178.07,177.99,5.01040368]
[1755577705389,2.55,178.05,177.96,5.01040368]
[1755577705589,4.00407641,178.04,177.96,5.01040368]
[1755577705788,2.58634185,178.05,178.0,0.03586231]
[1755577705789,4.00407641,178.03,178.0,0.03586231]
[1755577705989,4.00407641,178.02,178.0,0.03586231]
[1755577706388,2.55,178.03,178.0,0.03586231]
[1755577707589,0.03634185,178.05,178.0,3.23586231]
[1755577707794,4.02209947,178.04,178.0,3.23586231]
[1755577708093,0.03634185,178.05,178.01,3.2]
[1755577708290,4.02435542,178.04,178.01,3.2]
[1755577708493,0.03634185,178.05,178.0,0.03586231]
[1755577708697,0.03634185,178.05,178.02,3.2]
[1755577709492,0.03634185,178.05,178.0,0.03586231]
[1755577709995,0.03634185,178.05,178.02,3.2]
[1755577710192,4.02957325,178.04,178.02,3.2]
[1755577710393,4.02957325,178.04,178.0,0.03586231]
[1755577710394,4.03001394,178.03,178.0,0.03586231]
[1755577710584,2.55,178.01,178.0,0.03586231]
[1755577710793,6.58001394,178.01,178.0,0.03586231]
[1755577714403,4.03001394,178.01,178.0,0.03586231]
[1755577715095,6.58001394,178.01,178.0,0.03586231]
[1755577715902,4.03001394,178.01,178.0,0.03586231]
[1755577716501,2.58634185,178.05,178.0,3.23586231]
[1755577716700,4.02262239,178.04,178.01,3.2]
[1755577716900,4.02262239,178.03,178.01,3.2]
[1755577717200,4.02262239,178.02,178.01,3.2]
[1755577717795,0.03634185,178.05,178.01,0.56]
[1755577717997,0.03634185,178.05,178.04,3.2]
[1755577718596,143.32,178.15,178.04,3.2]
[1755577718597,149.21980195,178.15,178.04,3.2]
[1755577718797,4.0214045,178.14,178.05,5.6138]
[1755577719000,4.0214045,178.13,178.05,5.6138]
[1755577719198,4.0214045,178.12,178.05,5.6138]
[1755577719496,4.0214045,178.11,178.04,3.2]
[1755577719700,5.89980195,178.18,178.06,3.2]
[1755577719898,11.69007403,178.17,178.07,0.04034907]
[1755577720098,11.69007403,178.16,178.08,5.6126]
[1755577720298,4.01869271,178.15,178.08,5.6126]
[1755577720497,4.01869271,178.14,178.08,5.6126]
[1755577720699,4.01869271,178.13,178.1,3.23967457]
[1755577720898,385.94980195,178.19,178.1,3.23967457]
[1755577721097,11.70194963,178.18,178.1,3.23967457]
[1755577721302,2.55,178.16,178.1,0.03967457]
[1755577721503,2.55,178.14,178.1,0.03967457]
[1755577721702,6.5727415,178.13,178.1,0.03967457]
[1755577721900,4.0227415,178.12,178.1,0.03967457]
[1755577722203,4.0227415,178.12,178.11,3.2]
[1755577722404,2.55,178.17,178.11,3.2]
[1755577722603,4.02342982,178.16,178.11,3.2]
[1755577722805,4.02342982,178.15,178.11,3.2]
[1755577723007,4.02342982,178.14,178.11,3.2]
[1755577723207,2.55,178.17,178.11,3.2]
[1755577723405,6.56997181,178.16,178.11,3.2]
[1755577723607,4.01997181,178.15,178.11,3.2]
[1755577723905,2.55,178.16,178.11,3.2]
[1755577723906,4.01997181,178.14,178.11,3.2]
[1755577724210,4.01997181,178.13,178.1,0.03967457]
[1755577724403,2.55,178.16,178.1,0.03967457]
[1755577724705,2.55,178.13,178.1,0.03967457]
[1755577724911,2.55,178.11,178.1,0.03967457]
[1755577725206,4.01995119,178.11,178.1,0.03967457]
[1755577725408,2.55,178.13,178.1,0.03967457]
[1755577725608,6.56995119,178.12,178.1,0.03967457]
[1755577725905,6.56995119,178.11,178.1,0.03967457]
[1755577727118,4.01995119,178.11,178.1,0.03967457]
[1755577727405,2.55,178.13,178.1,0.03967457]
[1755577727610,6.56995119,178.12,178.1,0.03967457]
[1755577727796,4.01995119,178.11,178.1,0.03967457]
[1755577729704,6.56995119,178.11,178.1,0.03967457]
[1755577730008,6.56995119,178.11,178.01,3.2]
[1755577730009,10.19166147,178.11,178.01,3.2]
[1755577730209,4.01995119,178.1,178.01,3.2]
[1755577730413,4.01995119,178.09,178.01,3.2]
[1755577730609,4.01995119,178.08,178.01,3.2]
[1755577730902,4.01995119,178.07,177.97,3.2]
[1755577731108,4.01995119,178.06,177.97,3.2]
[1755577731305,6.52995119,178.05,177.97,3.2]
[1755577731613,4.01995119,178.04,177.97,3.2]
[1755577731818,4.01995119,178.03,177.93,3.2]
[1755577731999,4.01995119,178.02,177.93,3.2]
[1755577732310,4.01995119,178.01,177.93,3.2]
[1755577732497,4.01995119,178.0,177.93,3.2]
[1755577732702,2.51,178.03,177.93,3.2]
[1755577732910,4.02938786,178.02,177.93,3.2]
[1755577733103,4.02938786,178.01,177.93,3.2]
[1755577733302,4.02938786,178.0,177.93,3.2]
[1755577733503,2.51,178.03,177.93,3.2]
[1755577733699,4.02286506,178.02,177.93,3.2]
[1755577733904,4.02286506,178.01,177.93,3.2]
[1755577734102,4.02286506,178.0,177.93,3.2]
[1755577734311,2.51,178.03,177.93,3.2]
[1755577734609,4.0208054,178.02,177.93,3.2]
[1755577734810,4.0208054,178.01,177.93,3.2]
[1755577735006,2.51,178.03,177.93,3.2]
[1755577735204,2.51,178.03,177.94,5.6173]
[1755577735205,4.02027912,178.02,177.94,5.6173]
[1755577735405,2.51,178.03,177.94,5.6173]
[1755577735707,4.02145883,178.02,177.94,5.6173]
[1755577735911,2.51,178.03,177.94,5.6173]
[1755577736208,4.02142875,178.02,177.94,5.6173]
[1755577736411,2.51,178.03,177.94,5.6173]
[1755577736603,4.02224921,178.02,177.94,5.6173]
[1755577736801,2.51,178.03,177.94,5.6173]
[1755577737008,4.02434466,178.02,177.94,5.6173]
[1755577737210,2.51,178.03,177.94,5.6173]
[1755577737505,4.02412362,178.02,177.94,5.6173]
[1755577737708,149.07980195,178.08,177.95,8.8469]
[1755577737906,14.21375295,178.07,177.96,3.23]
[1755577738113,4.02464465,178.06,177.96,3.23]
[1755577738410,4.02464465,178.05,177.96,3.23]
[1755577738606,4.02464465,178.04,177.96,3.23]
[1755577738804,4.02464465,178.03,177.96,3.23]
[1755577739005,2.5,178.07,177.96,3.23]
[1755577739211,2.5,178.05,177.96,3.23]
[1755577739407,4.0259911,178.04,177.96,3.23]
[1755577739614,4.0259911,178.03,177.96,3.23]
[1755577739816,2.5,178.05,177.96,3.23]
[1755577740113,4.02591634,178.04,177.96,3.23]
[1755577740313,4.02591634,178.03,177.96,3.23]
[1755577740517,4.02591634,178.02,177.96,3.23]
[1755577740818,2.5,178.05,177.96,3.23]
[1755577741114,4.02386669,178.04,177.96,3.23]
[1755577741309,4.02386669,178.03,177.96,3.23]
[1755577741507,4.02386669,178.02,177.96,3.23]
[1755577741707,2.5,178.05,177.96,3.23]
[1755577741903,4.02886431,178.04,177.96,3.23]
[1755577742109,4.02886431,178.03,177.96,3.23]
[1755577742407,4.02886431,178.02,177.96,3.23]
[1755577742610,2.5,178.05,177.96,3.23]
[1755577742803,4.02927778,178.04,177.96,3.23]
[1755577743102,4.02927778,178.03,177.96,3.23]
[1755577743305,4.02927778,178.02,177.96,3.23]
[1755577743507,2.5,178.02,177.91,3.23]
[1755577743818,4.0285923,178.01,177.91,3.23]
[1755577744010,2.5,178.02,177.91,3.23]
[1755577744314,4.02450308,178.01,177.91,3.23]
[1755577744514,2.5,178.02,177.91,3.23]
[1755577744710,4.02609333,178.01,177.91,3.23]
[1755577745014,2.5,178.02,177.91,3.23]
[1755577745215,2.5,178.0,177.91,3.23]
[1755577745416,4.02863253,177.99,177.91,3.23]
[1755577745617,2.5,178.05,177.92,5.6178]
[1755577745914,4.02768203,178.04,177.93,3.23]
[1755577746108,4.02768203,178.03,177.93,3.23]
[1755577746310,6.52768203,178.02,177.93,3.23]
[1755577746614,4.02768203,178.01,177.93,3.23]
[1755577746819,2.5,178.02,177.93,3.23]
[1755577747005,4.0215385,178.01,177.93,3.23]
[1755577747209,2.5,178.02,177.93,3.23]
[1755577747409,4.01776027,178.01,177.93,3.23]
[1755577747704,2.5,178.02,177.93,3.23]
[1755577747903,4.0125492,178.01,177.93,3.23]
[1755577748115,2.5,178.02,177.93,3.23]
[1755577748319,4.01585521,178.01,177.94,5.01366485]
[1755577748514,2.5,178.02,177.94,5.01366485]
[1755577748715,4.0182425,178.01,177.94,5.01366485]
[1755577748917,2.5,178.02,177.94,5.01366485]
[1755577749115,4.01793787,178.01,177.94,5.01366485]
[1755577749416,2.5,178.02,177.94,5.01366485]
[1755577750012,2.5,178.07,177.95,3.23]
[1755577750212,2.5,178.05,177.95,3.23]
[1755577750415,4.0131254,178.04,177.95,3.23]
[1755577750719,2.5,178.03,177.95,3.23]
[1755577751015,4.0131254,178.02,177.95,3.23]
[1755577751218,2.5,178.03,177.95,3.23]
[1755577751415,4.01236523,178.02,177.95,3.23]
[1755577751609,2.5,178.07,177.98,3.23]
[1755577751817,4.01176621,178.06,177.98,3.23]
[1755577752016,6.51176621,178.05,177.98,3.23]
[1755577752207,2.5,178.03,177.94,8.24366485]
[1755577752717,2.5,178.03,177.95,3.23]
[1755577754523,2.5,178.03,177.97,5.01366485]
[1755577754914,2.5,178.09,178.0,5.01366485]
[1755577755119,4.00771207,178.08,178.0,8.24366485]
[1755577755318,4.00771207,178.07,178.0,8.24366485]
[1755577755519,2.5,178.09,178.03,0.04059278]
[1755577755720,2.53773118,178.06,178.03,0.04059278]
[1755577756816,2.5,178.05,178.03,0.04059278]
[1755577757016,2.5,178.04,178.03,0.04059278]
[1755577757416,6.50391128,178.04,178.03,0.04059278]
[1755577761523,4.00391128,178.04,178.03,0.04059278]
[1755577761724,2.53773118,178.06,178.03,0.04059278]
[1755577762026,3.99689387,178.05,178.03,0.04059278]
[1755577762224,2.53773118,178.06,178.03,0.04059278]
[1755577762524,0.03773118,178.06,178.03,0.04059278]
[1755577762928,0.03773118,178.06,178.03,3.07059278]
[1755577763221,0.03773118,178.06,178.04,3.03]
[1755577764622,0.03773118,178.06,178.05,3.03]
[1755577766426,0.03773118,178.06,178.04,3.03]
[1755577766823,0.03773118,178.06,178.05,3.03]
[1755577768926,142.98,178.12,178.05,3.03]
[1755577769122,3.99804353,178.11,178.06,5.01366485]
[1755577769322,142.98,178.12,178.06,5.01366485]
[1755577769523,4.00076723,178.11,178.08,3.03]
[1755577769722,142.98,178.12,178.08,3.03]
[1755577769926,4.00053092,178.11,178.08,3.03]
[1755577770131,145.52,178.12,178.08,3.07305143]
[1755577770429,4.00122557,178.11,178.08,3.07305143]
[1755577770625,145.52,178.12,178.08,3.07305143]
[1755577770829,4.00327541,178.11,178.08,3.07305143]
[1755577771024,145.52,178.12,178.08,3.07305143]
[1755577771224,4.00332183,178.11,178.08,3.07305143]
[1755577771424,145.52,178.12,178.08,3.07305143]
[1755577771726,2.54,178.1,178.08,0.04305143]
[1755577773930,142.98,178.12,178.08,0.04305143]
[1755577774135,4.00154888,178.11,178.08,3.07305143]
[1755577774331,4.00154888,178.1,178.08,3.07305143]
[1755577774528,2.54,178.11,178.08,0.04305143]
[1755577774827,4.00305597,178.1,178.08,3.07305143]
[1755577775024,142.98,178.12,178.08,3.07305143]
[1755577775231,4.00341769,178.11,178.08,3.07305143]
[1755577775433,145.52,178.12,178.08,3.07305143]
[1755577775734,4.00302807,178.11,178.08,3.07305143]
[1755577776031,2.54,178.09,178.08,0.04305143]
[1755577776334,6.54170595,178.09,178.08,0.04305143]
[1755577781746,9.58360321,178.09,178.08,0.04305143]
[1755577782044,6.54170595,178.09,178.08,0.04305143]
[1755577782243,9.58357839,178.09,178.08,0.04305143]
[1755577782447,14.18880301,178.09,178.08,0.04305143]
[1755577783650,14.18880301,178.09,178.01,3.03]
[1755577783651,2.49,178.08,177.97,3.03]
[1755577783949,2.49,178.06,177.97,3.03]
[1755577784250,4.00170595,178.05,177.97,3.03]
[1755577784449,4.00170595,178.04,177.97,3.03]
[1755577784652,4.00170595,178.03,177.97,3.03]
[1755577784849,4.00170595,178.02,177.94,5.01366485]
[1755577785145,2.49,178.06,177.95,3.03]
[1755577785453,3.99565488,178.05,177.95,3.03]
[1755577785648,3.99565488,178.04,177.95,3.03]
[1755577785951,3.99565488,178.03,177.95,3.03]
[1755577786153,3.99565488,178.02,177.95,3.03]
[1755577786443,2.49,178.06,177.95,3.03]
[1755577786644,3.9954693,178.05,177.95,3.03]
[1755577786849,3.9954693,178.04,177.95,3.03]
[1755577787049,3.9954693,178.03,177.95,3.03]
[1755577787350,3.9954693,178.02,177.95,3.03]
[1755577787543,2.49,178.06,177.95,3.03]
[1755577787745,3.9972204,178.05,177.95,3.03]
[1755577787949,3.9972204,178.04,177.95,3.03]
[1755577788250,3.9972204,178.03,177.95,3.03]
[1755577788456,3.9972204,178.02,177.95,3.03]
[1755577788648,2.49,178.06,177.95,3.03]
[1755577788849,3.99649118,178.05,178.03,3.03]
[1755577789050,2.48,178.12,178.03,8.04366485]
[1755577789244,3.9949825,178.11,178.03,8.04366485]
[1755577789446,3.9949825,178.1,178.03,8.04366485]
[1755577789647,3.9949825,178.09,178.03,8.04366485]
[1755577789852,3.9949825,178.08,178.03,8.04366485]
[1755577790055,2.48,178.12,178.04,3.03]
[1755577790255,3.99564505,178.11,178.04,3.03]
[1755577790443,3.99564505,178.1,178.04,3.03]
[1755577790643,3.99564505,178.09,178.03,5.01366485]
[1755577790951,3.99564505,178.08,178.05,3.03]
[1755577791156,2.48,178.12,178.05,3.03]
[1755577791348,4.01348149,178.11,178.05,3.03]
[1755577791549,4.01348149,178.1,178.06,3.03]
[1755577791847,4.01348149,178.09,178.06,3.03]
[1755577792048,4.01348149,178.08,178.06,3.03]
[1755577792254,2.48,178.1,178.06,3.03]
[1755577792455,4.01532019,178.09,178.06,3.03]
[1755577792650,4.01532019,178.08,178.06,3.03]
[1755577792850,2.48,178.1,178.06,3.03]
[1755577793048,4.01393562,178.09,178.06,3.03]
[1755577793248,4.01393562,178.08,178.06,3.03]
[1755577793447,2.48,178.1,178.06,3.03]
[1755577793650,4.01466447,178.09,178.06,3.03]
[1755577793851,4.01466447,178.08,178.02,5.04441473]
[1755577794050,145.24,178.13,178.03,2.98]
[1755577794251,11.67644417,178.12,178.03,2.98]
[1755577794446,4.01663807,178.11,178.03,2.98]
[1755577794649,4.01663807,178.1,178.03,2.98]
[1755577794851,4.01663807,178.09,178.03,2.98]
[1755577795050,4.01663807,178.08,178.02,5.04441473]
[1755577795256,145.24,178.13,178.05,2.98]
[1755577795557,11.67913631,178.12,178.05,2.98]
[1755577795859,4.01769478,178.11,178.05,2.98]
[1755577796153,2.48,178.1,178.06,2.98]
[1755577796357,4.01818467,178.09,178.06,2.98]
[1755577796551,4.01818467,178.08,178.06,2.98]
[1755577796754,2.48,178.1,178.06,2.98]
[1755577796955,4.01841173,178.09,178.06,2.98]
[1755577797155,4.01841173,178.08,178.06,2.98]
[1755577797458,2.48,178.1,178.06,2.98]
[1755577797753,391.25411766,178.16,178.06,2.98]
[1755577797754,4.01882007,178.09,178.06,2.98]
[1755577797959,520.02,178.16,178.09,2.98]
[1755577798256,11.68503108,178.15,178.09,2.98]
[1755577798457,4.01950832,178.14,178.1,2.98]
[1755577798657,4.01950832,178.13,178.1,2.98]
[1755577798859,4.01950832,178.12,178.1,2.98]
[1755577799060,4.01950832,178.11,178.1,2.98]
[1755577799855,520.02,178.16,178.1,2.98]
[1755577800054,4.01864312,178.15,178.1,2.98]
[1755577800252,6.49864312,178.14,178.1,2.98]
[1755577800452,4.01864312,178.13,178.1,2.98]
[1755577800652,4.01864312,178.12,178.1,2.98]
[1755577800853,522.5,178.16,178.09,2.98]
[1755577801156,4.01883515,178.15,178.09,2.98]
[1755577801353,4.01816903,178.14,178.09,2.98]
[1755577801657,520.02,178.16,177.96,14.31924711]
[1755577801658,4.01816903,178.13,178.05,5.04441473]
[1755577801857,4.01816903,178.12,178.05,8.02441473]
[1755577802060,4.01816903,178.11,178.05,8.02441473]
[1755577802248,2.48,178.13,178.05,8.02441473]
[1755577802452,4.01640095,178.12,178.06,2.98]
[1755577802658,4.01640095,178.11,178.05,5.04441473]
[1755577802859,2.48,178.13,178.07,2.98]
[1755577803161,6.49661448,178.12,178.07,2.98]
[1755577803357,4.01661448,178.11,178.07,2.98]
[1755577803555,522.5,178.16,178.08,2.98]
[1755577803756,4.01388586,178.15,178.08,2.98]
[1755577804059,4.01388586,178.14,178.1,2.98]
[1755577804363,522.5,178.16,178.12,2.98]
[1755577804670,4.01683375,178.15,178.12,2.98]
[1755577804960,4.01683375,178.15,178.08,5.04441473]
[1755577804961,4.01683375,178.14,178.1,2.98]
[1755577805161,2.48,178.14,178.1,2.98]
[1755577806459,4.01462803,178.13,178.08,2.98]
[1755577806666,4.01462803,178.12,178.05,8.02441473]
[1755577806866,4.01462803,178.11,178.05,8.02441473]
[1755577807065,6.49415296,178.1,178.06,2.98]
[1755577807365,4.01446129,178.09,178.04,5.6142]
[1755577807554,2.48,178.14,178.06,2.98]
[1755577807754,4.01356521,178.13,178.06,2.98]
[1755577807955,4.01356521,178.12,178.06,2.98]
[1755577808152,4.01356521,178.11,178.07,2.98]
[1755577808363,2.48,178.14,178.08,2.98]
[1755577808560,4.01401166,178.13,178.08,2.98]
[1755577808765,4.01401166,178.12,178.08,2.98]
[1755577809057,4.01401166,178.11,178.06,2.98]
[1755577809258,2.48,178.15,178.06,2.98]
[1755577809563,4.0108612,178.14,178.06,2.98]
[1755577809756,4.0108612,178.13,178.06,2.98]